bitfinex-derivatives/quotes_BTCF0:USTF0_20241122
["timestamp","ask_amount","ask_price","bid_price","bid_amount"]
[1732248692511,0.050547,98804.0,98803.0,0.1704]
[1732248692720,0.050547,98804.0,98803.0,0.218547]
[1732248692906,4e-05,98804.0,98799.0,0.36136]
[1732248693220,0.12152,98808.0,98799.0,0.36136]
[1732248693420,0.12152,98808.0,98804.0,0.050547]
[1732248693603,0.172065,98808.0,98807.0,4e-05]
[1732248698116,0.00084,98813.0,98807.0,0.36084]
[1732248698314,0.0102,98820.0,98819.0,0.050539]
[1732248698615,0.055631,98835.0,98819.0,0.050539]
[1732248698616,0.08372442,98830.0,98828.0,0.050534]
[1732248698810,0.28856884,98840.0,98829.0,0.050534]
[1732248699220,0.33909684,98840.0,98839.0,4e-05]
[1732248699520,0.171648,98840.0,98839.0,4e-05]
[1732248700219,0.171648,98840.0,98826.0,0.0024]
[1732248700515,0.171648,98840.0,98820.0,0.0102]
[1732248700516,0.050537,98822.0,98821.0,0.0024]
[1732248700718,0.050544,98809.0,98808.0,0.0024]
[1732248700917,0.050546,98806.0,98803.0,0.0024]
[1732248701821,0.050547,98804.0,98803.0,0.0024]
[1732248702121,0.050548,98801.0,98800.0,0.10056]
[1732248702325,0.050548,98801.0,98800.0,0.1]
[1732248702529,0.05062801,98801.0,98800.0,0.1]
[1732248703320,8.001e-05,98801.0,98800.0,0.1]
[1732248703821,0.05062801,98801.0,98800.0,0.1]
[1732248704321,8.001e-05,98801.0,98800.0,0.150549]
[1732248704719,8.001e-05,98801.0,98800.0,0.1]
[1732248705322,0.05062801,98801.0,98800.0,0.1]
[1732248705511,8.001e-05,98801.0,98800.0,0.1]
[1732248707129,8.001e-05,98801.0,98800.0,0.150549]
[1732248708615,8.001e-05,98801.0,98800.0,0.814989]
[1732248709426,0.05062801,98801.0,98800.0,0.4608]
[1732248710416,0.05062801,98801.0,98800.0,0.1]
[1732248711821,0.3608,98808.0,98800.0,0.1]
[1732248712328,0.050548,98801.0,98800.0,0.1]
[1732248714130,0.050553,98791.0,98784.0,0.0102]
[1732248714336,0.3608,98797.0,98785.0,0.050556]
[1732248714523,0.3608,98797.0,98780.0,0.3608]
[1732248714524,0.050555,98788.0,98780.0,0.3608]
[1732248714721,0.12767119,98790.0,98780.0,0.38962758]
[1732248714923,4e-05,98781.0,98780.0,0.44070658]
[1732248715327,4e-05,98781.0,98780.0,0.74442658]
[1732248716233,4e-05,98781.0,98780.0,0.74390658]
[1732248717125,0.0024,98798.0,98780.0,0.99334758]
[1732248717330,0.0024,98803.0,98802.0,0.050548]
[1732248717531,0.00151881,98808.0,98803.0,0.050547]
[1732248718029,0.00151881,98808.0,98807.0,4.001e-05]
[1732248720232,0.05206381,98808.0,98807.0,4.001e-05]
[1732248722043,0.05202381,98808.0,98807.0,4.001e-05]
[1732248724345,0.050551,98795.0,98794.0,0.0024]
[1732248724544,0.10882381,98808.0,98781.0,0.416]
[1732248724545,0.050554,98789.0,98788.0,0.36136]
[1732248724746,0.050554,98789.0,98788.0,0.3890893]
[1732248725555,0.050554,98789.0,98788.0,0.0282893]
[1732248725848,0.050553,98793.0,98778.0,0.38100616]
[1732248726053,0.050558,98783.0,98780.0,0.050558]
[1732248726349,0.12767119,98788.0,98787.0,0.050555]
[1732248726553,0.050554,98790.0,98787.0,0.050555]
[1732248726749,0.050554,98789.0,98788.0,0.0557]
[1732248726950,0.050559,98779.0,98778.0,0.40984375]
[1732248727153,0.050559,98779.0,98778.0,0.40932375]
[1732248727351,0.050559,98779.0,98778.0,0.38911759]
[1732248733060,0.050559,98779.0,98778.0,0.02831759]
[1732248733262,0.12068,98787.0,98777.0,0.02021316]
[1732248733449,0.05056,98778.0,98777.0,0.02021316]
[1732248733656,0.0506,98778.0,98777.0,0.02021316]
[1732248734259,0.0506,98778.0,98776.0,0.36132]
[1732248734260,0.05056,98777.0,98776.0,0.36132]
[1732248734454,4e-05,98778.0,98771.0,0.02809348]
[1732248734662,4e-05,98778.0,98764.0,0.37386]
[1732248734863,4e-05,98778.0,98764.0,0.3608]
[1732248735163,4e-05,98765.0,98764.0,0.38841521]
[1732248736858,4e-05,98765.0,98764.0,0.43898221]
[1732248741362,4e-05,98765.0,98764.0,0.38841521]
[1732248741558,0.050607,98765.0,98764.0,0.38841521]
[1732248744665,0.050607,98765.0,98764.0,0.02761521]
[1732248744968,0.050607,98765.0,98758.0,0.0542]
[1732248744969,4e-05,98765.0,98758.0,0.0542]
[1732248745354,4e-05,98765.0,98758.0,0.08307226]
[1732248745568,0.05057,98759.0,98758.0,0.08307226]
[1732248745766,0.05061,98759.0,98758.0,0.08307226]
[1732248746661,0.05061,98759.0,98758.0,0.02887226]
[1732248746863,4e-05,98759.0,98755.0,0.02021668]
[1732248747063,0.050571,98758.0,98755.0,0.02021668]
[1732248747269,4e-05,98756.0,98754.0,0.36132]
[1732248747463,0.050572,98755.0,98754.0,0.3608]
[1732248747664,0.050574,98751.0,98747.0,0.0578]
[1732248747859,0.050574,98751.0,98747.0,0.08671242]
[1732248748055,4e-05,98748.0,98747.0,0.08671242]
[1732248751360,4e-05,98748.0,98746.0,0.36132]
[1732248751572,0.050576,98747.0,98746.0,0.3608]
[1732248751772,0.050616,98747.0,98746.0,0.3608]
[1732248753763,0.050616,98747.0,98736.0,0.3708]
[1732248754062,0.050581,98737.0,98736.0,0.3614]
[1732248754266,0.050581,98737.0,98736.0,0.3608]
[1732248754460,0.0586,98746.0,98736.0,0.3896974]
[1732248754867,0.109176,98746.0,98745.0,4e-05]
[1732248756874,0.18347119,98755.0,98745.0,4e-05]
[1732248756875,0.0558,98755.0,98745.0,4e-05]
[1732248757064,0.12024,98753.0,98745.0,4e-05]
[1732248757267,0.12024,98753.0,98736.0,0.3896974]
[1732248757460,0.12767119,98750.0,98746.0,0.050576]
[1732248757664,0.12024,98753.0,98746.0,0.050576]
[1732248757665,0.170813,98753.0,98746.0,0.050576]
[1732248757868,0.0024,98764.0,98745.0,0.36132]
[1732248758066,0.050568,98763.0,98753.0,0.050573]
[1732248758259,0.050568,98763.0,98746.0,0.0546]
[1732248758260,0.050571,98757.0,98754.0,0.0543]
[1732248758465,0.050572,98755.0,98754.0,0.0543]
[1732248759273,0.12767119,98760.0,98754.0,0.08264631]
[1732248759468,0.05057,98758.0,98754.0,0.08264631]
[1732248759868,0.050572,98755.0,98754.0,0.08264631]
[1732248760071,0.050572,98755.0,98754.0,0.02834631]
[1732248760374,0.050576,98746.0,98745.0,0.3608]
[1732248760576,0.050574,98751.0,98745.0,0.38899059]
[1732248760873,4e-05,98746.0,98745.0,0.38899059]
[1732248761571,4e-05,98746.0,98745.0,0.40921369]
[1732248762283,4e-05,98746.0,98745.0,0.45979069]
[1732248765968,0.0024,98760.0,98745.0,0.76359069]
[1732248766173,0.0024,98767.0,98762.0,0.050568]
[1732248766368,0.107664,98770.0,98762.0,0.050568]
[1732248766672,0.0571,98770.0,98764.0,0.050567]
[1732248767268,0.0024,98778.0,98764.0,0.050567]
[1732248767574,0.0592,98784.0,98777.0,0.05056]
[1732248768080,0.0592,98784.0,98782.0,0.050558]
[1732248768278,0.12024,98794.0,98782.0,0.05067799]
[1732248768574,0.050553,98792.0,98782.0,0.05067799]
[1732248770681,0.050557,98784.0,98782.0,0.02855943]
[1732248770875,0.050555,98789.0,98782.0,0.02855943]
[1732248771066,0.12767119,98792.0,98782.0,0.02855943]
[1732248771273,0.05207588,98783.0,98782.0,0.02855943]
[1732248772182,0.00151888,98783.0,98782.0,0.02855943]
[1732248773069,0.05207588,98783.0,98782.0,0.02855943]
[1732248774075,0.05207588,98783.0,98782.0,0.00011999]
[1732248774771,0.35575588,98783.0,98782.0,0.00011999]
[1732248775080,0.050566,98767.0,98763.0,0.3608]
[1732248775381,0.050567,98765.0,98763.0,0.36132]
[1732248775581,0.1177,98766.0,98763.0,0.3608]
[1732248775777,4e-05,98764.0,98763.0,0.3608]
[1732248775972,0.050564,98770.0,98765.0,4e-05]
[1732248776183,0.050564,98771.0,98766.0,0.01702354]
[1732248776380,0.050564,98770.0,98769.0,4.001e-05]
[1732248776581,0.050564,98770.0,98769.0,0.01702354]
[1732248777489,0.48939119,98776.0,98769.0,0.01702354]
[1732248777682,0.48847119,98776.0,98770.0,0.01702354]
[1732248777985,0.48847119,98776.0,98764.0,0.01702354]
[1732248778183,0.48847119,98776.0,98765.0,0.01702354]
[1732248778485,0.48847119,98776.0,98763.0,0.38941987]
[1732248778690,0.48847119,98776.0,98763.0,0.38889987]
[1732248778885,0.050565,98769.0,98763.0,0.38889987]
[1732248779789,0.050567,98765.0,98763.0,0.38889987]
[1732248780091,0.050569,98760.0,98752.0,0.0101]
[1732248780287,0.050569,98760.0,98751.0,0.3608]
[1732248780588,0.050609,98760.0,98751.0,0.3608]
[1732248780987,0.050609,98760.0,98759.0,0.02874952]
[1732248782789,4e-05,98760.0,98759.0,0.04530663]
[1732248782993,4e-05,98760.0,98759.0,0.45667663]
[1732248783486,4e-05,98760.0,98759.0,0.40610663]
[1732248783886,0.050567,98764.0,98759.0,0.40610663]
[1732248784091,0.050567,98764.0,98759.0,0.38954952]
[1732248784288,0.050567,98764.0,98763.0,8e-05]
[1732248788796,0.050567,98764.0,98759.0,8e-05]
[1732248788797,0.354327,98764.0,98759.0,8e-05]
[1732248789101,0.050569,98760.0,98759.0,8e-05]
[1732248789288,0.050609,98760.0,98759.0,8e-05]
[1732248789693,0.050573,98752.0,98745.0,0.0125]
[1732248790000,0.050573,98752.0,98725.0,0.43160443]
[1732248790001,0.36088,98746.0,98738.0,0.0024]
[1732248790304,8e-05,98739.0,98735.0,0.050582]
[1732248790594,0.050661,98736.0,98735.0,0.050582]
[1732248791103,8e-05,98736.0,98734.0,0.02021929]
[1732248791398,0.3608,98746.0,98725.0,0.38153743]
[1732248791596,0.12767119,98740.0,98725.0,0.40945182]
[1732248791800,4e-05,98726.0,98725.0,0.46003882]
[1732248792001,0.12767119,98740.0,98725.0,0.38923439]
[1732248792303,0.050583,98733.0,98725.0,0.38923439]
[1732248792804,0.050584,98732.0,98725.0,0.38923439]
[1732248793188,0.050584,98731.0,98725.0,0.38923439]
[1732248793388,0.050586,98727.0,98725.0,0.38923439]
[1732248796795,0.050583,98734.0,98725.0,0.38923439]
[1732248797299,0.050583,98734.0,98733.0,4.001e-05]
[1732248797700,0.11968,98736.0,98733.0,4.001e-05]
[1732248797896,0.12767119,98750.0,98734.0,0.3608]
[1732248798195,0.12767119,98750.0,98742.0,0.3608]
[1732248798902,0.12767119,98750.0,98749.0,4.001e-05]
[1732248799103,0.050574,98751.0,98749.0,4.001e-05]
[1732248799308,0.6646,98750.0,98749.0,4.001e-05]
[1732248799600,0.050581,98737.0,98735.0,0.0583]
[1732248799795,0.11972,98742.0,98735.0,0.0559]
[1732248799995,4e-05,98736.0,98735.0,0.0559]
[1732248802306,4e-05,98736.0,98735.0,0.08408481]
[1732248802697,0.11972,98746.0,98735.0,0.08408481]
[1732248802895,0.11972,98746.0,98742.0,0.3608]
[1732248803202,0.050576,98747.0,98742.0,0.3608]
[1732248803507,0.02936742,98753.0,98744.0,0.050577]
[1732248803900,0.02936742,98753.0,98752.0,0.36088]
[1732248804199,0.00151949,98753.0,98752.0,0.36088]
[1732248804593,0.05209249,98753.0,98752.0,0.36088]
[1732248806701,0.00151949,98753.0,98752.0,0.36088]
[1732248808204,0.00151949,98753.0,98752.0,0.38855112]
[1732248808402,0.05209249,98753.0,98752.0,0.38855112]
[1732248809008,0.05205249,98753.0,98752.0,0.38855112]
[1732248812707,0.00147949,98753.0,98752.0,0.38855112]
[1732248812902,0.05205249,98753.0,98752.0,0.38855112]
[1732248813412,0.00147949,98753.0,98752.0,0.38855112]
[1732248814497,0.00147949,98753.0,98752.0,0.43912412]
[1732248817204,0.050565,98768.0,98753.0,0.050572]
[1732248817412,0.050565,98768.0,98758.0,0.05057]
[1732248817610,0.050565,98768.0,98754.0,0.057]
[1732248817611,0.050565,98768.0,98767.0,8e-05]
[1732248817808,0.12767119,98770.0,98767.0,8e-05]
[1732248818019,0.050565,98768.0,98767.0,8e-05]
[1732248818215,0.050567,98764.0,98754.0,0.0594]
[1732248818407,0.11912,98771.0,98754.0,0.057]
[1732248818715,4e-05,98755.0,98754.0,0.107572]
[1732248819713,0.12767119,98770.0,98759.0,0.05057]
[1732248819714,0.050565,98769.0,98759.0,0.05057]
[1732248819910,0.050565,98769.0,98764.0,0.3608]
[1732248820211,0.12767119,98770.0,98768.0,0.00012001]
[1732248820413,0.169683,98773.0,98768.0,0.00012001]
[1732248820611,0.169683,98773.0,98769.0,0.00012001]
[1732248820814,0.169683,98773.0,98772.0,0.00012001]
[1732248823122,0.12851119,98778.0,98772.0,0.00012001]
[1732248823417,0.12767119,98778.0,98777.0,0.36092001]
[1732248823618,0.11912,98782.0,98777.0,0.36092001]
[1732248823816,0.05056,98778.0,98777.0,0.00012001]
[1732248824019,0.050559,98781.0,98769.0,0.02885658]
[1732248824220,0.050559,98781.0,98765.0,0.1074]
[1732248824415,0.050565,98768.0,98765.0,0.1074]
[1732248824728,0.12767119,98775.0,98765.0,0.1074]
[1732248825017,0.12767119,98775.0,98774.0,0.00012001]
[1732248825216,0.11912,98782.0,98774.0,0.00012001]
[1732248825613,0.169678,98782.0,98781.0,0.00012001]
[1732248827718,0.169678,98782.0,98765.0,0.1074]
[1732248827719,0.050559,98781.0,98765.0,0.1074]
[1732248827914,0.12767119,98775.0,98765.0,0.02865601]
[1732248828112,4e-05,98766.0,98764.0,0.00052]
[1732248828416,0.050572,98755.0,98754.0,0.3608]
[1732248828625,0.050572,98755.0,98754.0,0.38900884]
[1732248828818,0.050612,98755.0,98754.0,0.38900884]
[1732248830113,4e-05,98755.0,98754.0,0.38900884]
[1732248833214,4e-05,98755.0,98754.0,0.43958084]
[1732248833414,0.12767119,98764.0,98754.0,0.38900884]
[1732248833611,0.12767119,98764.0,98759.0,0.05057]
[1732248833821,0.12767119,98764.0,98763.0,4e-05]
[1732248834017,0.11912,98781.0,98763.0,4e-05]
[1732248834018,0.12767119,98773.0,98764.0,0.050567]
[1732248835022,0.12767119,98773.0,98772.0,4e-05]
[1732248835524,0.050562,98775.0,98772.0,4e-05]
[1732248835917,0.050562,98775.0,98774.0,4e-05]
[1732248836318,0.411362,98775.0,98774.0,4e-05]
[1732248838525,0.43912343,98775.0,98774.0,4e-05]
[1732248838723,0.74284343,98775.0,98774.0,4e-05]
[1732248838920,0.050569,98761.0,98760.0,0.0024]
[1732248839132,0.050569,98761.0,98755.0,0.02850294]
[1732248839133,0.11912,98764.0,98755.0,0.02850294]
[1732248839326,0.050572,98755.0,98754.0,0.3608]
[1732248839728,0.050612,98755.0,98754.0,0.3608]
[1732248841926,4e-05,98755.0,98754.0,0.3608]
[1732248842830,4e-05,98755.0,98754.0,0.411372]
[1732248844327,4e-05,98755.0,98754.0,0.715172]
[1732248844534,0.050561,98776.0,98764.0,0.050567]
[1732248844730,0.12767119,98780.0,98765.0,0.4192]
[1732248844731,0.05056,98779.0,98765.0,0.4192]
[1732248844928,0.12767119,98770.0,98765.0,0.4192]
[1732248846140,0.17823519,98770.0,98765.0,0.3608]
[1732248846332,0.050565,98769.0,98765.0,0.3608]
[1732248846634,0.12767119,98770.0,98765.0,0.38913918]
[1732248846635,0.050566,98766.0,98765.0,0.38913918]
[1732248847131,0.12767119,98770.0,98765.0,0.38913918]
[1732248847636,0.050565,98768.0,98765.0,0.38913918]
[1732248848042,0.050566,98767.0,98765.0,0.38913918]
[1732248849439,0.050566,98766.0,98765.0,0.38913918]
[1732248850226,0.12767119,98770.0,98765.0,0.38913918]
[1732248850432,0.050565,98769.0,98765.0,0.40935642]
[1732248850633,0.12767119,98770.0,98765.0,0.40935642]
[1732248851137,0.17823519,98770.0,98769.0,4e-05]
[1732248851335,0.050564,98770.0,98769.0,4e-05]
[1732248851729,0.715084,98770.0,98758.0,0.0024]
[1732248851930,0.05057,98759.0,98758.0,0.0024]
[1732248852232,4e-05,98759.0,98758.0,0.3608]
[1732248853032,0.05061,98759.0,98758.0,0.3608]
[1732248853333,4e-05,98759.0,98758.0,0.3608]
[1732248854438,0.05061,98759.0,98758.0,0.3608]
[1732248858138,0.05061,98759.0,98756.0,0.3608]
[1732248858537,4e-05,98757.0,98756.0,0.3608]
[1732248860241,0.050611,98757.0,98756.0,0.3608]
[1732248863552,4e-05,98757.0,98756.0,0.3608]
[1732248869944,0.050611,98757.0,98756.0,0.3608]
[1732248875052,0.050611,98757.0,98748.0,0.02841721]
[1732248875237,0.050611,98757.0,98744.0,0.36372]
[1732248875238,0.050575,98749.0,98744.0,0.36132]
[1732248875436,0.050576,98748.0,98744.0,0.3608]
[1732248875648,4e-05,98745.0,98744.0,0.3608]
[1732248876839,4e-05,98745.0,98744.0,0.38915958]
[1732248878058,0.050617,98745.0,98744.0,0.38915958]
[1732248878248,4e-05,98745.0,98744.0,0.38915958]
[1732248879345,4e-05,98745.0,98744.0,0.40937806]
[1732248879547,0.050617,98745.0,98744.0,0.40937806]
[1732248880153,0.050617,98745.0,98736.0,0.02021724]
[1732248880154,0.050581,98737.0,98736.0,0.02021724]
[1732248880451,0.050584,98732.0,98727.0,0.0024]
[1732248880646,0.050621,98737.0,98726.0,0.050586]
[1732248880842,4e-05,98732.0,98731.0,0.38895019]
[1732248881650,4e-05,98732.0,98731.0,0.43953419]
[1732248881852,4e-05,98732.0,98731.0,0.45975493]
[1732248882953,4e-05,98732.0,98731.0,0.40917093]
[1732248883256,4e-05,98732.0,98731.0,0.45975493]
[1732248885644,4e-05,98732.0,98731.0,0.38895019]
[1732248886357,4e-05,98732.0,98720.0,0.02261724]
[1732248886550,0.08386798,98730.0,98720.0,0.02021724]
[1732248886858,4e-05,98721.0,98720.0,0.02021724]
[1732248888364,4e-05,98721.0,98720.0,0.07080724]
[1732248888555,4e-05,98721.0,98720.0,0.37468724]
[1732248888756,0.11812,98749.0,98722.0,0.050588]
[1732248888950,0.11812,98749.0,98743.0,0.3608]
[1732248889155,0.11812,98749.0,98744.0,0.1147]
[1732248890850,0.050576,98748.0,98744.0,0.1147]
[1732248891753,0.3608,98752.0,98744.0,0.1147]
[1732248891957,0.47892,98752.0,98744.0,0.1147]
[1732248892156,0.529493,98752.0,98751.0,4e-05]
[1732248894164,0.050573,98752.0,98751.0,4e-05]
[1732248894362,0.050571,98757.0,98751.0,4e-05]
[1732248894557,0.16773596,98761.0,98751.0,4e-05]
[1732248894960,0.05057,98760.0,98745.0,0.0566]
[1732248895149,0.050576,98746.0,98745.0,0.0566]
[1732248895357,0.050616,98746.0,98745.0,0.0566]
[1732248895552,0.050577,98745.0,98744.0,0.14352736]
[1732248896064,0.050617,98745.0,98744.0,0.14352736]
[1732248896760,0.411417,98745.0,98731.0,0.0024]
[1732248896964,0.3608,98737.0,98731.0,0.02791954]
[1732248897162,4e-05,98732.0,98725.0,0.1105]
[1732248897554,4e-05,98726.0,98725.0,0.41438]
[1732248897754,4e-05,98726.0,98725.0,0.1105]
[1732248898070,4e-05,98726.0,98725.0,0.41438]
[1732248899459,4e-05,98726.0,98725.0,0.1105]
[1732248899762,4e-05,98726.0,98725.0,0.41438]
[1732248899956,4e-05,98726.0,98725.0,0.1105]
[1732248900363,4e-05,98726.0,98725.0,0.13072159]
[1732248901163,0.050583,98734.0,98725.0,0.49152159]
[1732248901359,0.08386798,98735.0,98725.0,0.49152159]
[1732248901566,0.08386798,98735.0,98734.0,0.3608]
[1732248901760,0.050582,98736.0,98734.0,0.3608]
[1732248902064,0.050582,98735.0,98734.0,0.3608]
[1732248902268,0.050583,98734.0,98733.0,8e-05]
[1732248902665,0.050623,98734.0,98733.0,8e-05]
[1732248903265,0.411423,98734.0,98733.0,8e-05]
[1732248903569,0.050623,98734.0,98733.0,8e-05]
[1732248903757,0.411423,98734.0,98733.0,8e-05]
[1732248903961,0.050623,98734.0,98733.0,8e-05]
[1732248909069,0.050589,98721.0,98712.0,0.37312]
[1732248909370,4e-05,98721.0,98712.0,0.36354]
[1732248909571,4e-05,98721.0,98713.0,0.13795055]
[1732248909870,4e-05,98714.0,98713.0,0.13795055]
[1732248910066,0.050633,98714.0,98713.0,0.13795055]
[1732248910768,0.050633,98714.0,98713.0,0.02785055]
[1732248910973,0.3608,98720.0,98712.0,0.00274]
[1732248911171,0.3608,98720.0,98712.0,0.00222]
[1732248911364,0.050633,98713.0,98712.0,0.00222]
[1732248911972,4e-05,98713.0,98712.0,0.36302]
[1732248912373,4e-05,98713.0,98712.0,0.39105339]
[1732248913067,4e-05,98713.0,98712.0,0.03025339]
[1732248913975,0.050633,98713.0,98712.0,0.03025339]
[1732248915674,0.050597,98705.0,98704.0,0.3608]
[1732248916176,0.050599,98701.0,98700.0,0.1]
[1732248916570,0.050639,98701.0,98700.0,0.1]
[1732248916766,0.050639,98701.0,98700.0,0.12890554]
[1732248916964,4e-05,98701.0,98700.0,0.12890554]
[1732248917363,0.050639,98701.0,98700.0,0.12890554]
[1732248917768,0.050639,98701.0,98700.0,0.1]
[1732248918374,0.050599,98701.0,98700.0,0.1]
[1732248926770,0.106898,98704.0,98700.0,0.1]
[1732248926973,0.050599,98701.0,98700.0,0.1]
[1732248929080,0.11776,98705.0,98703.0,0.050598]
[1732248929279,0.11776,98705.0,98700.0,0.1]
[1732248929469,0.11776,98705.0,98704.0,7.999e-05]
[1732248932381,0.168357,98705.0,98704.0,7.999e-05]
[1732248933379,0.168357,98705.0,98689.0,0.0024]
[1732248933380,0.050598,98704.0,98689.0,0.0024]
[1732248933686,0.050598,98704.0,98686.0,0.1701]
[1732248933687,0.050607,98688.0,98686.0,0.1701]
[1732248933885,0.050607,98688.0,98686.0,0.1112]
[1732248934288,0.11748,98688.0,98683.0,0.02890735]
[1732248934485,0.11748,98688.0,98678.0,0.0589]
[1732248934688,0.05061,98681.0,98678.0,0.0589]
[1732248934878,4e-05,98684.0,98678.0,0.0589]
[1732248935079,4e-05,98684.0,98679.0,0.05061]
[1732248935384,4e-05,98684.0,98683.0,4e-05]
[1732248937890,0.050648,98684.0,98683.0,4e-05]
[1732248939982,4e-05,98684.0,98683.0,4e-05]
[1732248940188,0.050648,98684.0,98683.0,4e-05]
[1732248943383,0.050608,98684.0,98683.0,4e-05]
[1732248949494,0.050616,98668.0,98664.0,0.0094]
[1732248949683,0.89742,98667.0,98652.0,0.02898821]
[1732248949883,0.89742,98667.0,98645.0,0.1149]
[1732248949884,0.3608,98653.0,98645.0,0.1149]
[1732248950081,0.13449098,98655.0,98645.0,0.1149]
[1732248950281,4e-05,98646.0,98645.0,0.1149]
[1732248950582,4e-05,98646.0,98645.0,0.1351344]
[1732248952481,0.3608,98656.0,98645.0,0.1351344]
[1732248952682,0.050626,98651.0,98645.0,0.1351344]
[1732248952889,0.3608,98656.0,98645.0,0.1351344]
[1732248953098,0.050626,98649.0,98645.0,0.1351344]
[1732248953288,0.3608,98656.0,98655.0,4.001e-05]
[1732248953491,0.411423,98656.0,98655.0,4.001e-05]
[1732248954693,0.528943,98656.0,98655.0,4.001e-05]
[1732248956194,0.050627,98648.0,98647.0,0.00072879]
[1732248956383,0.411427,98648.0,98647.0,0.00072879]
[1732248956583,0.411467,98648.0,98647.0,0.00072879]
[1732248958895,0.05063,98642.0,98641.0,0.02854063]
[1732248959095,0.050627,98647.0,98641.0,0.02024153]
[1732248959394,0.050627,98647.0,98646.0,4e-05]
[1732248960305,0.412427,98648.0,98646.0,4e-05]
[1732248960509,0.050627,98647.0,98646.0,4e-05]
[1732248960802,0.05063,98642.0,98641.0,0.02024153]
[1732248967100,0.050628,98646.0,98641.0,0.02024153]
[1732248967301,0.411427,98648.0,98641.0,0.02024153]
[1732248967607,0.3608,98648.0,98641.0,0.02024153]
[1732248968208,0.36076,98648.0,98641.0,0.02024153]
[1732248969012,0.36076,98648.0,98642.0,0.01652443]
[1732248969317,0.0034,98656.0,98652.0,0.050625]
[1732248969506,0.0024,98665.0,98655.0,0.3608]
[1732248969708,0.3608,98668.0,98655.0,0.52857596]
[1732248969709,0.35213499,98668.0,98655.0,0.52857596]
[1732248969909,0.35213499,98668.0,98656.0,0.01652443]
[1732248970111,0.1172,98675.0,98667.0,4e-05]
[1732248970323,0.050611,98679.0,98668.0,0.01652443]
[1732248970614,0.3608,98669.0,98668.0,0.01652443]
[1732248970919,0.3608,98669.0,98660.0,0.13809433]
[1732248970920,0.3608,98669.0,98661.0,0.01652443]
[1732248971113,0.3608,98669.0,98655.0,0.36132]
[1732248971417,4e-05,98662.0,98655.0,0.02823489]
[1732248971618,0.3608,98661.0,98653.0,0.114]
[1732248971809,0.7216,98655.0,98647.0,0.0101]
[1732248972011,0.050628,98647.0,98642.0,0.0546]
[1732248972416,4e-05,98643.0,98642.0,0.0546]
[1732248973009,4e-05,98643.0,98642.0,0.08303037]
[1732248973410,4e-05,98643.0,98642.0,0.02843037]
[1732248973714,0.05063,98642.0,98637.0,0.1099]
[1732248974113,4e-05,98642.0,98637.0,0.1099]
[1732248974309,4e-05,98642.0,98637.0,0.13810656]
[1732248975515,4e-05,98642.0,98641.0,0.03676596]
[1732248976411,4e-05,98642.0,98641.0,0.02024153]
[1732248981220,4e-05,98642.0,98637.0,0.08180656]
[1732248981418,0.050634,98634.0,98631.0,0.01652443]
[1732248981606,0.050632,98637.0,98632.0,0.01652443]
[1732248981810,0.050632,98637.0,98633.0,0.01652443]
[1732248982012,0.050632,98637.0,98636.0,4e-05]
[1732248982225,0.050632,98637.0,98636.0,0.01656443]
[1732248982416,0.35449379,98638.0,98636.0,0.01656443]
[1732248982608,0.35449379,98638.0,98637.0,0.01652443]
[1732248982815,0.40512579,98638.0,98637.0,0.01656443]
[1732248983019,0.34818713,98638.0,98637.0,0.01656443]
[1732248983813,0.34818713,98638.0,98637.0,4e-05]
[1732248985016,0.29755513,98638.0,98637.0,4e-05]
[1732248986712,0.15837087,98638.0,98637.0,0.01656443]
[1732248987218,0.167831,98640.0,98637.0,0.01656443]
[1732248987519,0.1172,98640.0,98639.0,4e-05]
[1732248987711,0.3608,98643.0,98639.0,0.01656443]
[1732248987912,0.1172,98643.0,98640.0,0.01652443]
[1732248988119,0.1172,98643.0,98642.0,4e-05]
[1732248988318,0.1172,98643.0,98642.0,0.01656443]
[1732248988517,0.00152087,98654.0,98642.0,0.01656443]
[1732248988720,0.00152087,98654.0,98644.0,0.050629]
[1732248988922,0.00152087,98654.0,98647.0,4e-05]
[1732248989228,0.00152087,98654.0,98647.0,0.050667]
[1732248989821,0.3608,98663.0,98647.0,0.050667]
[1732248990024,0.3608,98663.0,98647.0,0.37131143]
[1732248990417,0.3608,98655.0,98647.0,0.01656443]
[1732248991429,0.411423,98655.0,98647.0,0.01656443]
[1732248991618,0.412423,98655.0,98647.0,0.01656443]
[1732248991825,0.3618,98655.0,98647.0,0.01656443]
[1732248992121,0.050624,98653.0,98647.0,4e-05]
[1732248992319,0.3608,98655.0,98647.0,4e-05]
[1732248992621,0.3608,98655.0,98647.0,0.01656443]
[1732248993017,0.12799433,98660.0,98647.0,0.06719143]
[1732248994530,0.12799433,98660.0,98648.0,0.01652443]
[1732248994728,0.17861533,98660.0,98659.0,4e-05]
[1732248994924,0.050621,98660.0,98659.0,4e-05]
[1732248995226,0.050621,98660.0,98659.0,0.01656443]
[1732248998428,0.050621,98660.0,98659.0,0.04466472]
[1732248998619,0.050621,98660.0,98659.0,0.01656443]
[1732248999227,0.35449347,98665.0,98659.0,0.01656443]
[1732248999422,0.05062,98662.0,98660.0,0.01652443]
[1732248999629,0.05062,98662.0,98661.0,0.01652443]
[1732249000333,0.35449347,98665.0,98649.0,0.01652443]
[1732249000528,0.12799433,98659.0,98648.0,0.0521009]
[1732249000828,4e-05,98650.0,98649.0,0.01652443]
[1732249002434,0.050666,98650.0,98649.0,0.0391717]
[1732249002617,0.050666,98650.0,98649.0,0.01652443]
[1732249003625,4e-05,98650.0,98649.0,0.01652443]
[1732249003818,0.050666,98650.0,98649.0,0.01652443]
[1732249004436,0.3608,98655.0,98649.0,0.01652443]
[1732249004630,0.3608,98655.0,98650.0,0.01652443]
[1732249004929,0.3608,98655.0,98654.0,8e-05]
[1732249005133,0.3608,98655.0,98654.0,0.01660443]
[1732249005321,0.05062,98662.0,98654.0,0.01660443]
[1732249005523,0.05062,98662.0,98655.0,0.01652443]
[1732249005728,0.05062,98662.0,98661.0,8e-05]
[1732249005925,0.05062,98662.0,98661.0,0.01660443]
[1732249007937,0.05062,98662.0,98661.0,8e-05]